Cogmind - Beta 10.2 @@@ ROGUE MODE // 2020.12.06 @ 16:16:47 Player: motadol Result: Destroyed by S-10 Pest with Light Assault Rifle Performance ------------- Evolutions (0) 0 Regions Visited (2) 400 Robots Destroyed (14) 70 Value Destroyed (178) 178 Prototype IDs (0) 0 Alien Tech Used (0) 0 Bonus (0) 0 TOTAL SCORE: 648 Bonus ------- None Cogmind --------- Core Integrity 0/250 Matter 300/300 Energy 100/100 System Corruption 0% Temperature Cool (0) Movement Rolling (110) Ox1 Location -10/Mines Parts ------- > --- POWER (1) -------- (None) > --- PROPULSION (2) --- Compact Wheel > --- UTILITY (2) ------ Small Storage Unit Large Storage Unit > --- WEAPON (2) ------- (None) > --- INVENTORY (12) --- Light Ion Engine Light Treads Small Storage Unit Medium Storage Unit Medium Storage Unit Medium Matter Pod (3) Visual Processing Unit Grenade Launcher Peak State ------------ > --- POWER ------------ Light Ion Engine > --- PROPULSION ------- Compact Wheel Compact Wheel > --- UTILITY ---------- Small Storage Unit Large Storage Unit > --- WEAPON ----------- Medium Laser Light Assault Rifle > --- INVENTORY -------- Light Ion Engine Light Ion Engine Compact Wheel Compact Wheel Hover Unit Small Storage Unit Medium Storage Unit Medium Storage Unit Tractor Beam Grenade Launcher [Rating: 8] Favorites ----------- Power Light Ion Engine Engine Light Ion Engine Propulsion Compact Wheel Treads Light Treads Wheel Compact Wheel Utility Small Storage Unit Device Tractor Beam Storage Small Storage Unit Weapon Medium Laser Energy Gun Medium Laser Ballistic Gun Light Assault Rifle Special Weapon Mining Laser Special Melee Weapon Datajack Build | -11 -10 -10 ------- Run | Scr Mat Min Slots Evolved . | . . . Power . | . . . Propulsion . | . . . Utility . | . . . Weapon . | . . . Parts Attached 24 | 6 16 2 Power 3 | 1 2 . Engine 3 | 1 2 . Core . | . . . Reactor . | . . . Propulsion 8 | 2 4 2 Treads 1 | . . 1 Leg . | . . . Wheel 7 | 2 4 1 Hover . | . . . Flight . | . . . Utility 6 | 2 4 . Device 1 | . 1 . Storage 5 | 2 3 . Processor . | . . . Hackware . | . . . Protection . | . . . Artifact . | . . . Weapon 7 | 1 6 . Energy Gun 3 | 1 2 . Energy Cannon . | . . . Ballistic Gun 2 | . 2 . Ballistic Cannon . | . . . Launcher . | . . . Special Weapon 1 | . 1 . Impact Weapon . | . . . Slashing Weapon . | . . . Piercing Weapon . | . . . Special Melee Weapon 1 | . 1 . Unidentified Prototypes . | . . . Parts Lost 12 | . 9 3 Power 2 | . 1 1 Propulsion 4 | . 3 1 Utility . | . . . Weapon 6 | . 5 1 Highest Loss Streak 5 | . 5 3 Average Slot Usage (%) 84 | . 86 63 Engine 12 | . 13 10 Wheel 25 | . 25 17 Storage 28 | . 28 28 Energy Gun 10 | . 11 . Ballistic Gun 5 | . 6 . Naked Turns . | . . . Heaviest Build 26 | 15 26 24 Greatest Support 32 | 32 32 32 Greatest Overweight (x) 2 | 2 1 1 Average Overweight (x) . | . . . Largest Inventory Capacity 12 | 8 12 12 Average Capacity 9 | 6 10 12 Most Carried 12 | 6 12 8 Average Carried 6 | 2 7 8 Final Capacity 12 | 8 12 12 Final Carried 8 | 6 8 8 Class Distribution -------------------- 96% | Mutant 3% | Scavenger-Mutant Dominant Class ---------------- Mutant | -10/Materials Mutant | -10/Mines Resources | -11 -10 -10 ----------- Run | Scr Mat Min Matter Collected 413 | 260 153 . Remotely 10 | . 10 . Salvage Created 456 | 70 386 . Parts 26 | 4 22 . Haulers Intercepted . | . . . Recyclers Shooed 2 | . 2 . Parts Field Recycled . | . . . Retrieved Matter . | . . . Parts Self-Destructed . | . . . Prevented . | . . . Kills | -11 -10 -10 ------- Run | Scr Mat Min Combat Hostiles Destroyed 9 | . 8 1 Melee 1 | . 1 . Guns 7 | . 7 . Cannons 1 | . . 1 Classes Destroyed 4 | 1 3 . Recycler 4 | 1 3 . Watcher 1 | . 1 . Swarmer 7 | . 6 1 Grunt 2 | . 2 . Best Kill Streak 6 | 1 6 1 Combat Bots Only 3 | . 3 1 Max Kills in Single Turn 1 | 1 1 1 Gunslinging . | . . . Exploded . | . . . Melee 1 | . 1 . Uniques/NPCs Destroyed . | . . . Combat | -11 -10 -10 -------- Run | Scr Mat Min Damage Taken 1014 | . 702 312 Core 253 | . 154 99 Absorbed by Shields . | . . . Core Remaining (%) 100 | 100 . . Volleys Fired 50 | 2 46 2 Largest 2 | 1 2 1 Hottest 100 | 40 90 100 Shots Fired 72 | 2 68 2 Gun 70 | 2 68 . Cannon . | . . . Launcher . | . . . Special 2 | . . 2 Kinetic 39 | . 39 . Thermal 20 | . 18 2 Explosive . | . . . Electromagnetic 13 | 2 11 . Robot Hit Streak 17 | 2 17 1 Robot Miss Streak 4 | . 4 3 Penetration Max . | . . . Secondary Targets . | . . . Shots Hit Robots 44 | 2 41 1 Core Hits 22 | 2 18 2 Critical Hits . | . . . Critical Kills . | . . . Critical Parts Destroyed . | . . . Melee Attacks 1 | . 1 . Impact . | . . . Slashing . | . . . Piercing . | . . . Sneak Attacks . | . . . Combat Hostiles . | . . . Follow-up Attacks . | . . . Damage Inflicted 546 | 24 470 52 Guns 404 | 24 380 . Cannons . | . . . Explosions 74 | . 74 . Melee . | . . . Ramming 20 | . 16 4 Kinetic 180 | . 180 . Thermal 245 | . 197 48 Explosive . | . . . Electromagnetic 101 | 24 77 . Impact . | . . . Slashing . | . . . Piercing . | . . . Highest Corruption . | . . . Average Corruption . | . . . Corruption Purged . | . . . Overload Shots . | . . . Overflow Damage 19 | . 19 . Projectiles . | . . . Explosions 19 | . 19 . Melee . | . . . Knockbacks . | . . . Impact . | . . . Kinetic . | . . . Secondary . | . . . Self-Inflicted Damage 46 | . 46 . Shots 1 | . 1 . Rammed 10 | . 6 4 Targets Rammed 10 | . 6 4 Kicked . | . . . Crushed . | . . . Highest Temperature 100 | . 100 40 Average Temperature 28 | . 29 22 Received Heat Transfer 174 | . 174 . Siege Activations . | . . . Robots Corrupted . | . . . Combat Hostiles . | . . . Parts Fried . | . . . Impact Corruptions . | . . . Robots Melted . | . . . Combat Hostiles . | . . . Parts Melted . | . . . Heat Transferred 570 | . 470 100 Parts Sabotaged . | . . . Parts Stolen . | . . . Parts Stripped . | . . . Power Chain Reactions 1 | . 1 . Missiles Intercepted . | . . . Alert | -11 -10 -10 ------- Run | Scr Mat Min Peak Influence 185 | 5 185 42 Initial 7 | . 3 7 Average 76 | 4 91 23 Maximum Alert Level . | . . . Low Security (%) 100 | 100 100 100 Level 1 . | . . . Level 2 . | . . . Level 3 . | . . . Level 4 . | . . . Level 5 . | . . . High Security . | . . . Max Security . | . . . Squads Dispatched 1 | . 1 . Investigation 1 | . 1 . Extermination . | . . . Reinforcement . | . . . Assault . | . . . Garrison . | . . . Intercept . | . . . Construction Impeded . | . . . Haulers Reinforced . | . . . Stealth | -11 -10 -10 --------- Run | Scr Mat Min Distress Signals . | . . . Communications Jammed . | . . . Distress Signals . | . . . Times Spotted 17 | . 14 3 Peak Tracking Total 3 | . 3 3 Tactical Retreats 2 | . 2 . Traps | -11 -10 -10 ------- Run | Scr Mat Min Traps Triggered 2 | . 2 . Indirectly . | . . . Trap Hack Attempts . | . . . Triggered . | . . . Disarmed . | . . . Reprogrammed . | . . . Reused . | . . . Traps Extracted . | . . . Installed . | . . . Triggered . | . . . Machines | -11 -10 -10 ---------- Run | Scr Mat Min Machines Disabled . | . . . Max in Single Turn . | . . . Machines Sabotaged . | . . . Garrisons Compromised . | . . . Overloaded Fab Kills . | . . . Fab Network Shutdowns . | . . . Hacking | -11 -10 -10 --------- Run | Scr Mat Min Machines Accessed 2 | . 2 . Terminals 2 | . 2 . Fabricators . | . . . Repair Stations . | . . . Recycling Units . | . . . Scanalyzers . | . . . Garrison Access . | . . . Total Hacks 4 | . 4 . Successful 1 | . 1 . Failed 3 | . 3 . Catastrophic 1 | . 1 . Database Lockouts . | . . . Manual 1 | . 1 . Terminals 4 | . 4 . Fabricators . | . . . Repair Stations . | . . . Recycling Units . | . . . Scanalyzers . | . . . Garrison Access . | . . . Terminal Hacks 1 | . 1 . Record 1 | . 1 . Fabricator Hacks . | . . . Repair Station Hacks . | . . . Recycling Unit Hacks . | . . . Scanalyzer . | . . . Garrison Access Hacks . | . . . Unauthorized Hacks . | . . . Terminals . | . . . Fabricators . | . . . Repair Stations . | . . . Recycling Units . | . . . Scanalyzers . | . . . Garrison Access . | . . . Data Cores Recovered . | . . . Used . | . . . Hacking Detections 2 | . 2 . Full Trace Events 1 | . 1 . Feedback Events . | . . . Feedback Blocked . | . . . Robot Schematics Acquired . | . . . Robots Built . | . . . Matter . | . . . Time . | . . . Total Robot Build Rating . | . . . Part Schematics Acquired . | . . . Parts Built . | . . . Matter . | . . . Time . | . . . Total Part Build Rating . | . . . Parts Repaired . | . . . Time . | . . . Parts Recycled . | . . . Recycled Matter . | . . . Retrieved Matter . | . . . Retrieved Components . | . . . Parts Scanalyzed . | . . . Part Schematics Acquired . | . . . Parts Damaged . | . . . Bothacking | -11 -10 -10 ------------ Run | Scr Mat Min Used RIF Installer . | . . . Robots Hacked 1 | . 1 . Non-combat . | . . . Combat 1 | . 1 . Robot Hacks Applied 1 | . 1 . parse_system 1 | . 1 . Relay Couplers Released . | . . . Robots Rewired . | . . . Allies Hacked . | . . . Hacks Repelled . | . . . Allies | -11 -10 -10 -------- Run | Scr Mat Min Total Allies . | . . . Largest Group . | . . . Highest-Rated Group . | . . . Highest-Rated Ally . | . . . Total Orders . | . . . Ally Attacks . | . . . Total Damage . | . . . Kills . | . . . Allies Corrupted . | . . . Allies Melted . | . . . Intel | -11 -10 -10 ------- Run | Scr Mat Min Robot Analysis Total . | . . . Derelict Logs Recovered . | . . . Drone Launches . | . . . Drone Recoveries . | . . . Exploration | -11 -10 -10 ------------- Run | Scr Mat Min Turns Passed 708 | 84 576 48 Spaces Moved 506 | 70 410 26 Core 27 | 27 . . Treads 1 | . . 1 Legs . | . . . Wheels 478 | 43 410 25 Hover . | . . . Flight . | . . . Fastest Speed 50 | 50 100 100 Average Speed 99 | 90 100 111 Slowest Speed 180 | 150 110 180 Overloaded Moves . | . . . Propulsion Burnouts . | . . . Robots Hopped . | . . . Cave-ins Triggered . | . . . Exploration Rate (%) 24 | 5 50 18 Regions Visited 2 Branch Regions 1 Pre-discovered Areas . | . . . Known Exits Taken . | . . . Unknown Exits Taken 2 | 1 1 . Scrap Searched . | . . . Spaces Dug . | . . . Terrain Destroyed 3 | . 3 . Melee . | . . . Projectile . | . . . AOE 3 | . 3 . Terrain Rammed . | . . . Walls Destroyed . | . . . Machines Disabled . | . . . Actions | -11 -10 -10 --------- Run | Scr Mat Min Total 633 | 87 512 34 Wait 13 | . 13 . Move 504 | 69 409 26 Hop . | . . . Pick Up 26 | 10 16 . Fast Attach 2 | 2 . . Attach 16 | 4 12 . Detach 1 | . 1 . Swap 6 | . 4 2 Drop 4 | . 4 . Fire 50 | 2 46 2 Melee 1 | . 1 . Ram 6 | . 6 . Kick . | . . . Crush 4 | . . 4 Escape Stasis . | . . . Rewire . | . . . Trap . | . . . Miscellaneous . | . . . Route ------- -11/Scrapyard -10/Materials (discovered 2 exits: [*Mat] / [*Min]) -10/Mines History --------- Turn | Location | Event 7 | -11/Scrapyard | Discovered new exit (range 15) 85 | -11/Scrapyard | Entered Materials 228 | -10/Materials | Discovered new exit (range 5) 298 | -10/Materials | Lost 4 parts (2n2w) 479 | -10/Materials | Core integrity fell below 50% 517 | -10/Materials | Lost 5 parts (1p1n3w) 555 | -10/Materials | Build established: Mutant 648 | -10/Materials | Discovered new exit (range 6) 661 | -10/Materials | Entered Mines 677 | -10/Mines | Core integrity fell below 20% 709 | -10/Mines | Destroyed by S-10 Pest with Light Assault Rifle Last Messages --------------- 00531_ U-05 Engineer lays Concrete. 00533_ T-07 Excavator is excavating. 00533_ U-05 Engineer lays Concrete. 00538_ T-07 Excavator is excavating. 00557_ R-06 Scavenger inserts Aluminum Leg into recycling unit. 00578_ Acquired 30 matter. 00641_ Triggered Alarm Trap. 00641_ An alarm sounds. 00641_ ALERT: Alarm triggered, dispatching investigation squad. 00648_ EXIT=FOUND 00654_ Acquired Med. Matter Pod. 00657_ Acquired Mining Laser. LOCATION=UNKNOWN GOAL=ESCAPE 00663_ S-10 Pest destroyed. 00670_ Mining Laser destroyed. 00673_ Slammed into S-10 Pest. 00683_ Com. Wheel destroyed. 00690_ Lgt. Ion Engine destroyed. 00702_ K-01 Serf collects debris. Map ----- +----------------------------------------------------+ | ?????????????????????????????????????????? | | ?????????????????????????????????????????? | | ?????????????????????????????????????????? | | ?????????????????????????????????????????? | | ?????????????????????????????????????????? | | ?????????????????????????????????????????? | | ?????????????????????????????????????????? | | ?????????????????????????????????????????? | | ?????????????????????????????????????????? | | ?????????????????????????????????????????? | | ?????????????????????????????????????????? | | ?????????????????????????????????????????? | | ?????????# ####?????????????????????????? | | ??????? ## ?????????????????????????? | | ???????? ????????????????????????? | | ????????# ????????????????????????? | | ?????????# ????????????????????????? | | ??????????# ! ????????????????????????? | | ???????????# ????????????????????????? | | ????????????# ????????????????????????? | | ?????????????# ##??????????????????????? | | ??????????????# #####??????????????????? | | ?????????????## ##?????????????????? | | ????????## ## #?????????????????? | | ????????# #?????????????????? | | ????????# @ s #?????????????????? | | ????????## ] ### k#?????????????????? | | ?????????## ##?# #?????????????????? | | ??????????#= #??## ##????????????????? | | ??????????## ???# #????? ??????????? | | ???????????## ???## ##??? ????????? | | ????????????# ???# ### ????????? | | ????????????# ????# """ #????????? | | ????????????##???## """ ##????????? | | ?????????????????# """ #####?????????? | | ????????????????## ##?????????????? | | ????????????????# ####??????????????? | | ????????????????# ##?????????????????? | | ????????????????## ##??????????????????? | | ?????????????????# ##???????????????????? | | ???????????###???# #????????????????????? | | ??????????## ##?# #????????????????????? | | ?????????## ### ##???????????????????? | | ?????????# ##??????????????????? | | ?????????# ### """???????????? | | ?????????# """???????????? | | ?????????## ???????? | | ??????????#### ### ???????? | | ?????????????## ## ##??? ????????? | | ??????????????####?###?????####??????????? | +----------------------------------------------------+ Best States ------------- Heat Dissipation 25 Energy Generation 10 Energy Capacity 250 Matter Stores 300 Matter Capacity 300 Sight Range 16 Terrain Scan Density 10 Evasion (%) 50 Recoil Reduction 1 Item Schematics ----------------- None Robot Schematics ------------------ None Fabricated ------------ Nothing Alien Tech Used ----------------- None Achievements -------------- Fist Fight Challenges ------------ None Game ------ Seed RiotMomentumMallet Manual? 0 Play Time 00:20:46 Cumulative 7.5 hours Start 2020.12.05 @ 22:10:00 End 2020.12.06 @ 16:16:47 Sessions 5 Manual Loads 0 Difficulty Rogue Special Mode None Game No. 4 Rogue 4 Adventurer 0 Explorer 0 Win Type - Total 0 Types 0/0/0/0/0/0/0/0/0 Lore% 11 Gallery% 10 Achievement% 8 Wizard Run 0 Options --------- ASCII 0 Keyboard 0 Movement Numpad Keybinds 0 Fullscreen 2 Font 18/SmallcapsGlow Map View 76x50 Tactical HUD 1 Map Filters NONE Filters NONE Steam 1 RUN: bdf8a4d8-c319-4f83-86f4-3611565af023